fUST/lending_fUST_20240704
["ID","MTS","AMOUNT","RATE_DAILY","PERIOD"]
[331114289,1720087839573,-500.0,0.00013909,2]
[331114290,1720087839583,-622.16774263,0.00013909,2]
[331114291,1720087839592,-550.0,0.00013909,2]
[331114292,1720087839601,-500.0,0.00013909,2]
[331114293,1720087839611,-205.54302994,0.00013909,2]
[331114294,1720087839620,-500.0,0.00013909,2]
[331114295,1720087839630,-500.0,0.00013909,2]
[331114296,1720087839639,-500.0,0.00013909,2]
[331114297,1720087839648,-500.0,0.00013909,2]
[331114298,1720087839658,-500.0,0.00013909,2]
[331114299,1720087839668,-617.14422841,0.00013909,2]
[331114300,1720087839678,-7402.77695997,0.0001391,2]
[331114301,1720087839687,-300.0,0.0001401,2]
[331114302,1720087839697,-300.0,0.0001401,2]
[331114303,1720087839706,-7269.10038165,0.00014012,2]
[331114304,1720087839716,-4588.8974704,0.00014013,2]
[331114305,1720087839725,-500.0,0.0001402,2]
[331114306,1720087839746,-501.51636752,0.0001402,2]
[331114307,1720087839757,-1140.50047029,0.00014021,2]
[331114308,1720087839768,-2642.35,0.00014021,2]
[331114309,1720087839778,-833.63,0.00014021,2]
[331114310,1720087839789,-199.30313638,0.00014021,2]
[331114311,1720087839798,-504.21438087,0.00014021,2]
[331114312,1720087839809,-500.0,0.00014021,2]
[331114313,1720087839819,-500.0,0.00014021,2]
[331114314,1720087839829,-1847.74,0.00014021,2]
[331114315,1720087839840,-500.0,0.00014021,2]
[331114316,1720087839850,-568.69,0.00014021,2]
[331114317,1720087839861,-2618.87,0.00014021,2]
[331114318,1720087839871,-2456.35,0.00014021,2]
[331114319,1720087839881,-1350.87,0.00014021,2]
[331114320,1720087839892,-500.0,0.00014021,2]
[331114321,1720087839902,-500.0,0.00014021,2]
[331114322,1720087839912,-500.0,0.00014021,2]
[331114323,1720087839923,-1112.35,0.00014021,2]
[331114324,1720087839933,-500.0,0.00014021,2]
[331114325,1720087839943,-500.0,0.00014021,2]
[331114326,1720087839953,-4383.96,0.00014021,2]
[331114327,1720087839965,-13273.12,0.00014021,2]
[331114328,1720087839975,-1857.67,0.00014021,2]
[331114329,1720087839986,-2000.0,0.00014032,2]
[331114330,1720087839995,-306.18091354,0.00014055,2]
[331114331,1720087840006,-500.0,0.00014063,2]
[331114332,1720087840016,-500.0,0.00014063,2]
[331114333,1720087840026,-500.0,0.00014063,2]
[331114334,1720087840037,-500.0,0.00014063,2]
[331114335,1720087840047,-190.4560022,0.00014063,2]
[331114336,1720087840057,-1144.03,0.00014063,2]
[331114337,1720087840067,-503.68030026,0.00014063,2]
[331114338,1720087840076,-500.0,0.00014063,2]
[331114339,1720087840086,-500.0,0.00014063,2]
[331114340,1720087840096,-201.99295825,0.00014063,2]
[331114341,1720087840105,-500.0,0.00014063,2]
[331114342,1720087840115,-308.29331516,0.00014063,2]
[331114343,1720087840126,-500.0,0.00014063,2]
[331114344,1720087840136,-500.0,0.00014063,2]
[331114345,1720087840145,-500.0,0.00014063,2]
[331114346,1720087840155,-500.0,0.00014063,2]
[331114347,1720087840166,-1549.3,0.00014063,2]
[331114348,1720087840176,-500.0,0.00014063,2]
[331114349,1720087840186,-500.0,0.00014063,2]
[331114350,1720087840197,-509.64505529,0.00014063,2]
[331114351,1720087840208,-500.0,0.00014063,2]
[331114352,1720087840219,-500.0,0.00014063,2]
[331114353,1720087840231,-500.0,0.00014063,2]
[331114354,1720087840242,-517.42106403,0.00014063,2]
[331114355,1720087840252,-978.62,0.00014063,2]
[331114356,1720087840262,-1333.4,0.00014063,2]
[331114357,1720087840271,-500.0,0.00014063,2]
[331114358,1720087840282,-500.0,0.00014063,2]
[331114359,1720087840296,-500.0,0.00014063,2]
[331114360,1720087840306,-500.0,0.00014063,2]
[331114361,1720087840315,-502.22919778,0.00014063,2]
[331114362,1720087840325,-500.0,0.00014063,2]
[331114363,1720087840337,-507.27682454,0.00014063,2]
[331114364,1720087840346,-500.0,0.00014063,2]
[331114365,1720087840357,-503.06600599,0.00014063,2]
[331114367,1720087840368,-500.0,0.00014063,2]
[331114368,1720087840378,-500.0,0.00014063,2]
[331114369,1720087840388,-658.46,0.00014063,2]
[331114370,1720087840401,-500.0,0.00014063,2]
[331114372,1720087840412,-500.0,0.00014063,2]
[331114373,1720087840422,-237.18240255,0.00014063,2]
[331114374,1720087840432,-500.0,0.00014063,2]
[331114375,1720087840442,-500.0,0.00014063,2]
[331114376,1720087840451,-500.0,0.00014063,2]
[331114377,1720087840462,-500.0,0.00014063,2]
[331114378,1720087840471,-500.0,0.00014063,2]
[331114379,1720087840483,-500.0,0.00014063,2]
[331114380,1720087840492,-500.0,0.00014063,2]
[331114381,1720087840502,-500.0,0.00014063,2]
[331114382,1720087840512,-506.2879413,0.00014063,2]
[331114383,1720087840522,-500.0,0.00014063,2]
[331114384,1720087840532,-500.0,0.00014063,2]
[331114385,1720087840542,-500.0,0.00014063,2]
[331114386,1720087840552,-500.0,0.00014063,2]
[331114387,1720087840562,-500.0,0.00014063,2]
[331114388,1720087840572,-500.0,0.00014063,2]
[331114389,1720087840586,-500.0,0.00014063,2]
[331114390,1720087840596,-500.0,0.00014063,2]
[331114391,1720087840607,-500.0,0.00014063,2]
[331114392,1720087840617,-500.0,0.00014063,2]
[331114393,1720087840627,-500.0,0.00014063,2]
[331114394,1720087840636,-747.62,0.00014063,2]
[331114395,1720087840647,-500.0,0.00014063,2]
[331114396,1720087840657,-506.22383554,0.00014063,2]
[331114397,1720087840667,-500.0,0.00014063,2]
[331114398,1720087840677,-500.0,0.00014063,2]
[331114399,1720087840687,-500.0,0.00014063,2]
[331114400,1720087840697,-500.0,0.00014063,2]
[331114401,1720087840707,-579.17802302,0.00014063,2]
[331114402,1720087840716,-500.0,0.00014063,2]
[331114403,1720087840727,-500.0,0.00014063,2]
[331114404,1720087840739,-502.31490436,0.00014063,2]
[331114405,1720087840748,-544.2,0.00014063,2]
[331114406,1720087840758,-8681.02,0.00014063,2]
[331114407,1720087840767,-500.0,0.00014063,2]
[331114408,1720087840779,-500.0,0.00014063,2]
[331114409,1720087840789,-867.19,0.00014063,2]
[331114410,1720087840800,-500.0,0.00014063,2]
[331114411,1720087840810,-500.0,0.00014063,2]
[331114412,1720087840820,-500.0,0.00014063,2]
[331114413,1720087840831,-500.0,0.00014063,2]
[331114414,1720087840841,-500.0,0.00014063,2]
[331114415,1720087840851,-500.0,0.00014063,2]
[331114416,1720087840860,-500.0,0.00014063,2]
[331114417,1720087840871,-500.0,0.00014063,2]
[331114418,1720087840881,-500.0,0.00014063,2]
[331114419,1720087840891,-958.13,0.00014063,2]
[331114420,1720087840901,-500.0,0.00014063,2]
[331114421,1720087840911,-500.0,0.00014063,2]
[331114422,1720087840921,-500.0,0.00014063,2]
[331114423,1720087840932,-500.0,0.00014063,2]
[331114424,1720087840942,-7269.10038163,0.00014081,2]
[331114425,1720087840953,-500.0,0.000141,2]
[331114426,1720087840962,-18108.3978557,0.000141,2]
[331114427,1720087840972,-18108.3978557,0.00014102,2]
[331114428,1720087840985,-5431.1209915,0.0001411,2]
[331114429,1720087840995,-500.0,0.0001411,2]
[331114430,1720087841004,-407.2131153,0.00014111,2]
[331114431,1720087841013,-19006.24737785,0.00014112,2]
[331114432,1720087841023,-18108.3978557,0.00014112,2]
[331114433,1720087841032,-500.0,0.00014112,2]
[331114434,1720087841041,-502.68330273,0.00014112,2]
[331114435,1720087841051,-500.0,0.00014112,2]
[331114436,1720087841060,-463.82252788,0.00014112,2]
[331114437,1720087841070,-500.0,0.00014112,2]
[331114438,1720087841079,-500.0,0.00014112,2]
[331114439,1720087841089,-500.0,0.00014112,2]
[331114440,1720087841099,-500.0,0.00014112,2]
[331114441,1720087841108,-500.0,0.00014112,2]
[331114442,1720087841118,-500.0,0.00014112,2]
[331114444,1720087841128,-500.0,0.00014112,2]
[331114445,1720087841137,-500.0,0.00014112,2]
[331114446,1720087841147,-500.0,0.00014112,2]
[331114447,1720087841157,-500.0,0.00014112,2]
[331114448,1720087841167,-502.59611082,0.00014112,2]
[331114449,1720087841177,-505.97981691,0.00014112,2]
[331114450,1720087841186,-500.0,0.00014112,2]
[331114451,1720087841195,-500.0,0.00014112,2]
[331114452,1720087841205,-500.0,0.00014112,2]
[331114453,1720087841215,-500.0,0.00014112,2]
[331114454,1720087841225,-517.28691165,0.00014112,2]
[331114455,1720087841237,-500.0,0.00014112,2]
[331114456,1720087841247,-500.0,0.00014112,2]
[331114457,1720087841257,-500.0,0.00014112,2]
[331114458,1720087841267,-500.0,0.00014112,2]
[331114459,1720087841276,-500.0,0.00014112,2]
[331114460,1720087841286,-500.0,0.00014112,2]
[331114461,1720087841301,-500.0,0.00014112,2]
[331114462,1720087841310,-500.0,0.00014112,2]
[331114463,1720087841320,-500.0,0.00014112,2]
[331114464,1720087841331,-885.9,0.00014112,2]
[331114465,1720087841340,-504.09733249,0.00014112,2]
[331114466,1720087841350,-505.2814893,0.00014112,2]
[331114467,1720087841359,-500.0,0.00014112,2]
[331114468,1720087841369,-751.5,0.00014112,2]
[331114469,1720087841380,-500.0,0.00014112,2]
[331114470,1720087841390,-511.68476921,0.00014112,2]
[331114471,1720087841401,-500.0,0.00014112,2]
[331114472,1720087841411,-712.23,0.00014112,2]
[331114473,1720087841420,-629.57,0.00014112,2]
[331114474,1720087841556,-506.10890854,0.00014112,2]
[331114475,1720087841566,-500.0,0.00014112,2]
[331114476,1720087841576,-500.0,0.00014112,2]
[331114477,1720087841586,-500.0,0.00014112,2]
[331114478,1720087841595,-415.06377454,0.00014112,2]
[331114479,1720087841605,-500.0,0.00014112,2]
[331114480,1720087841614,-500.0,0.00014112,2]
[331114481,1720087841624,-500.0,0.00014112,2]
[331114482,1720087841633,-500.0,0.00014112,2]
[331114483,1720087841643,-500.0,0.00014112,2]
[331114484,1720087841652,-500.0,0.00014112,2]
[331114485,1720087841662,-500.0,0.00014112,2]
[331114486,1720087841671,-500.0,0.00014112,2]
[331114487,1720087841681,-500.0,0.00014112,2]
[331114488,1720087841690,-506.92771056,0.00014112,2]
[331114489,1720087841699,-500.0,0.00014112,2]
[331114490,1720087841709,-1120.2,0.00014112,2]
[331114491,1720087841719,-476.00641102,0.00014112,2]
[331114492,1720087841728,-500.0,0.00014112,2]
[331114493,1720087841739,-198.00070053,0.00014112,2]
[331114494,1720087841748,-1024.91,0.00014112,2]
[331114495,1720087841758,-500.0,0.00014112,2]
[331114496,1720087841768,-4634.39,0.00014112,2]
[331114497,1720087841777,-207.92601823,0.00014112,2]
[331114498,1720087841786,-500.0,0.00014112,2]
[331114499,1720087841796,-500.0,0.00014112,2]
[331114500,1720087841805,-500.0,0.00014112,2]
[331114501,1720087841815,-500.0,0.00014112,2]
[331114502,1720087841824,-500.0,0.00014112,2]
[331114503,1720087841834,-500.0,0.00014112,2]
[331114504,1720087841843,-500.0,0.00014112,2]
[331114505,1720087841853,-500.0,0.00014112,2]
[331114506,1720087841862,-500.0,0.00014112,2]
[331114507,1720087841871,-500.0,0.00014112,2]
[331114508,1720087841881,-500.0,0.00014112,2]
[331114509,1720087841891,-500.0,0.00014112,2]
[331114510,1720087841911,-500.0,0.00014112,2]
[331114511,1720087841922,-503.73654093,0.00014112,2]
[331114512,1720087841932,-500.0,0.00014112,2]
[331114513,1720087841942,-500.0,0.00014112,2]
[331114514,1720087841952,-500.0,0.00014112,2]
[331114515,1720087841963,-500.0,0.00014112,2]
[331114516,1720087841974,-500.0,0.00014112,2]
[331114517,1720087841987,-500.0,0.00014112,2]
[331114518,1720087841997,-500.0,0.00014112,2]
[331114519,1720087842007,-500.0,0.00014112,2]
[331114520,1720087842022,-500.0,0.00014112,2]
[331114521,1720087842032,-500.0,0.00014112,2]
[331114522,1720087842042,-502.00156353,0.00014112,2]
[331114523,1720087842052,-18108.3978557,0.00014113,2]
[331114524,1720087842063,-500.0,0.00014121,2]
[331114525,1720087842073,-500.0,0.00014121,2]
[331114526,1720087842082,-500.0,0.00014121,2]
[331114527,1720087842092,-500.0,0.00014121,2]
[331114528,1720087842102,-500.0,0.00014121,2]
[331114529,1720087842112,-500.0,0.00014121,2]
[331114530,1720087842123,-500.0,0.00014122,2]
[331114531,1720087842133,-500.0,0.00014122,2]
[331114532,1720087842142,-500.0,0.00014122,2]
[331114533,1720087842152,-500.0,0.00014122,2]
[331114534,1720087842163,-537.48756216,0.00014122,2]
[331114535,1720087842173,-500.0,0.00014122,2]
[331114536,1720087842183,-500.0,0.00014122,2]
[331114537,1720087842192,-303.02939214,0.00014122,2]
[331114538,1720087842202,-500.0,0.00014122,2]
[331114539,1720087842211,-500.0,0.00014122,2]
[331114540,1720087842221,-500.0,0.00014122,2]
[331114541,1720087842232,-282.91916023,0.00014122,2]
[331114542,1720087842242,-500.0,0.00014122,2]
[331114543,1720087842252,-235.60773799,0.00014122,2]
[331114544,1720087842262,-500.0,0.00014122,2]
[331114545,1720087842272,-500.0,0.00014122,2]
[331114546,1720087842282,-500.0,0.00014122,2]
[331114547,1720087842297,-501.99186785,0.00014122,2]
[331114548,1720087842307,-500.0,0.00014122,2]
[331114549,1720087842316,-336.32526303,0.00014122,2]
[331114550,1720087842326,-500.0,0.00014122,2]
[331114551,1720087842337,-500.0,0.00014122,2]
[331114552,1720087842347,-500.0,0.00014122,2]
[331114553,1720087842356,-18108.3978557,0.00014122,2]
[331114554,1720087842368,-713.54,0.00014123,2]
[331114555,1720087842377,-504.43843048,0.00014123,2]
[331114556,1720087842388,-954.68,0.00014123,2]
[331114557,1720087842397,-500.0,0.00014123,2]
[331114558,1720087842407,-500.0,0.00014123,2]
[331114559,1720087842417,-500.0,0.00014123,2]
[331114560,1720087842427,-500.0,0.00014123,2]
[331114561,1720087842438,-503.24890876,0.00014123,2]
[331114562,1720087842447,-500.0,0.00014123,2]
[331114563,1720087842456,-500.0,0.00014123,2]
[331114564,1720087842466,-500.0,0.00014123,2]
[331114565,1720087842478,-500.0,0.00014123,2]
[331114566,1720087842488,-508.27695055,0.00014123,2]
[331114567,1720087842497,-579.48305805,0.00014123,2]
[331114568,1720087842507,-500.0,0.00014123,2]
[331114569,1720087842518,-500.0,0.00014123,2]
[331114570,1720087842529,-500.0,0.00014123,2]
[331114571,1720087842538,-500.0,0.00014123,2]
[331114572,1720087842549,-500.0,0.00014123,2]
[331114573,1720087842559,-500.0,0.00014123,2]
[331114574,1720087842569,-500.0,0.00014123,2]
[331114575,1720087842579,-500.0,0.00014123,2]
[331114576,1720087842588,-663.89,0.00014123,2]
[331114577,1720087842598,-500.0,0.00014123,2]
[331114578,1720087842607,-946.68,0.00014123,2]
[331114579,1720087842616,-500.0,0.00014123,2]
[331114580,1720087842626,-500.0,0.00014123,2]
[331114581,1720087842635,-500.0,0.00014123,2]
[331114582,1720087842645,-500.0,0.00014123,2]
[331114583,1720087842654,-259.11271614,0.00014123,2]
[331114584,1720087842664,-345.21076198,0.00014123,2]
[331114585,1720087842673,-330.84007039,0.00014123,2]
[331114586,1720087842682,-500.0,0.00014123,2]
[331114587,1720087842692,-500.0,0.00014123,2]
[331114588,1720087842702,-501.96828092,0.00014123,2]
[331114589,1720087842712,-500.0,0.00014123,2]
[331114590,1720087842721,-500.0,0.00014123,2]
[331114591,1720087842731,-500.08820759,0.00014123,2]
[331114592,1720087842741,-500.0,0.00014123,2]
[331114593,1720087842750,-505.59563584,0.00014123,2]
[331114594,1720087842760,-710.28,0.00014123,2]
[331114595,1720087842769,-500.0,0.00014123,2]
[331114596,1720087842779,-500.0,0.00014123,2]
[331114597,1720087842788,-1046.54093284,0.00014123,2]
[331114599,1720087842798,-500.0,0.00014123,2]
[331114600,1720087842807,-500.0,0.00014123,2]
[331114601,1720087842816,-508.71934431,0.00014123,2]
[331114602,1720087842826,-518.08539196,0.00014123,2]
[331114603,1720087842835,-500.0,0.00014123,2]
[331114604,1720087842845,-500.0,0.00014123,2]
[331114605,1720087842854,-508.61573657,0.00014123,2]
[331114606,1720087842863,-500.0,0.00014123,2]
[331114607,1720087842873,-636.56817691,0.00014123,2]
[331114608,1720087842883,-500.0,0.00014123,2]
[331114609,1720087842892,-500.0,0.00014123,2]
[331114610,1720087842901,-500.0,0.00014123,2]
[331114611,1720087842910,-500.0,0.00014123,2]
[331114612,1720087842919,-500.0,0.00014123,2]
[331114613,1720087842930,-500.0,0.00014123,2]
[331114614,1720087842940,-500.0,0.00014123,2]
[331114615,1720087842951,-500.0,0.00014123,2]
[331114616,1720087842962,-501.39494377,0.00014123,2]
[331114617,1720087842971,-500.0,0.00014123,2]
[331114618,1720087842982,-298.12313667,0.00014123,2]
[331114619,1720087842991,-509.5,0.00014123,2]
[331114620,1720087843000,-500.0,0.00014123,2]
[331114621,1720087843009,-501.36868169,0.00014123,2]
[331114622,1720087843018,-500.0,0.00014123,2]
[331114623,1720087843027,-500.0,0.00014123,2]
[331114624,1720087843036,-501.32742922,0.00014123,2]
[331114625,1720087843046,-504.04832553,0.00014123,2]
[331114626,1720087843055,-500.0,0.00014123,2]
[331114627,1720087843064,-500.0,0.00014123,2]
[331114628,1720087843073,-504.00834534,0.00014123,2]
[331114629,1720087843082,-505.63634828,0.00014123,2]
[331114630,1720087843091,-508.14063049,0.00014123,2]
[331114631,1720087843100,-504.85401027,0.00014123,2]
[331114632,1720087843109,-500.0,0.00014123,2]
[331114633,1720087843118,-506.77150427,0.00014123,2]
[331114634,1720087843127,-527.29058408,0.00014123,2]
[331114635,1720087843136,-503.71192694,0.00014123,2]
[331114636,1720087843145,-506.27187391,0.00014123,2]
[331114637,1720087843154,-584.37346398,0.00014123,2]
[331114638,1720087843163,-500.0,0.00014123,2]
[331114639,1720087843172,-566.98097364,0.00014123,2]
[331114640,1720087843181,-500.0,0.00014123,2]
[331114641,1720087843190,-304.26591386,0.00014123,2]
[331114642,1720087843199,-500.10829568,0.00014123,2]
[331114643,1720087843208,-502.89302522,0.00014123,2]
[331114644,1720087843217,-500.0,0.00014123,2]
[331114645,1720087843227,-500.0,0.00014123,2]
[331114646,1720087843237,-4270.05,0.00014123,2]
[331114647,1720087843247,-506.23996833,0.00014123,2]
[331114648,1720087843259,-509.32216716,0.00014123,2]
[331114649,1720087843269,-500.0,0.00014123,2]
[331114650,1720087843278,-500.0,0.00014123,2]
[331114651,1720087843287,-502.50411365,0.00014123,2]
[331114652,1720087843301,-505.20988298,0.00014123,2]
[331114654,1720087843310,-551.41,0.00014123,2]
[331114655,1720087843320,-504.15847044,0.00014123,2]
[331114657,1720087843329,-933.17,0.00014123,2]
[331114659,1720087843338,-390.4820704,0.00014123,2]
[331114661,1720087843347,-502.3351056,0.00014123,2]
[331114663,1720087843356,-429.88288086,0.00014123,2]
[331114665,1720087843365,-500.0,0.00014123,2]
[331114667,1720087843379,-500.0,0.00014123,2]
[331114669,1720087843389,-502.9229916,0.00014123,2]
[331114670,1720087843398,-500.0,0.00014123,2]
[331114671,1720087843407,-500.0,0.00014123,2]
[331114672,1720087843416,-500.0,0.00014123,2]
[331114673,1720087843426,-500.0,0.00014123,2]
[331114674,1720087843435,-500.0,0.00014123,2]
[331114675,1720087843445,-500.0,0.00014123,2]
[331114676,1720087843454,-500.0,0.00014123,2]
[331114677,1720087843464,-500.0,0.00014123,2]
[331114678,1720087843474,-500.0,0.00014123,2]
[331114679,1720087843483,-509.95308106,0.00014123,2]
[331114680,1720087843492,-500.0,0.00014123,2]
[331114681,1720087843502,-508.24,0.00014123,2]
[331114682,1720087843511,-504.01838315,0.00014123,2]
[331114684,1720087843521,-504.35788494,0.00014123,2]
[331114686,1720087843530,-506.82066888,0.00014123,2]
[331114688,1720087843540,-503.01395375,0.00014123,2]
[331114690,1720087843548,-502.14449728,0.00014123,2]
[331114692,1720087843558,-500.0,0.00014123,2]
[331114694,1720087843567,-500.0,0.00014123,2]
[331114696,1720087843576,-500.0,0.00014123,2]
[331114698,1720087843586,-560.4574432,0.00014123,2]
[331114700,1720087843595,-501.45431292,0.00014123,2]
[331114701,1720087843604,-502.49072805,0.00014123,2]
[331114702,1720087843613,-647.49656263,0.00014123,2]
[331114703,1720087843623,-551.64,0.00014123,2]
[331114704,1720087843631,-500.0,0.00014123,2]
[331114705,1720087843641,-500.0,0.00014123,2]
[331114706,1720087843650,-500.0,0.00014123,2]
[331114707,1720087843659,-946.68,0.00014131,2]
[331114708,1720087843668,-500.0,0.00014131,2]
[331114709,1720087843678,-500.0,0.00014131,2]
[331114710,1720087843687,-18108.3978557,0.00014131,2]
[331114711,1720087843696,-946.68,0.00014132,2]
[331114712,1720087843705,-946.68,0.00014132,2]
[331114713,1720087843715,-500.0,0.00014132,2]
[331114714,1720087843724,-500.0,0.00014132,2]
[331114715,1720087843734,-500.0,0.00014132,2]
[331114716,1720087843743,-500.0,0.00014132,2]
[331114717,1720087843753,-500.0,0.00014132,2]
[331114720,1720087843762,-502.70879148,0.00014132,2]
[331114722,1720087843771,-500.0,0.00014132,2]
[331114725,1720087843780,-500.0,0.00014132,2]
[331114726,1720087843789,-500.0,0.00014132,2]
[331114727,1720087843799,-500.0,0.00014132,2]
[331114728,1720087843922,-507.86197331,0.00014132,2]
[331114729,1720087843932,-665.41,0.00014132,2]
[331114730,1720087843941,-504.17838627,0.00014132,2]
[331114731,1720087843951,-500.0,0.00014132,2]
[331114732,1720087843960,-500.0,0.00014132,2]
[331114733,1720087843970,-500.0,0.00014132,2]
[331114734,1720087843979,-747.68,0.00014132,2]
[331114735,1720087843989,-516.53471016,0.00014132,2]
[331114736,1720087843998,-500.0,0.00014132,2]
[331114737,1720087844007,-500.0,0.00014132,2]
[331114738,1720087844017,-500.0,0.00014132,2]
[331114739,1720087844026,-500.0,0.00014132,2]
[331114740,1720087844035,-500.0,0.00014132,2]
[331114741,1720087844045,-500.0,0.00014132,2]
[331114742,1720087844054,-500.0,0.00014132,2]
[331114743,1720087844063,-706.92,0.00014132,2]
[331114744,1720087844072,-536.38439202,0.00014132,2]
[331114745,1720087844081,-549.35,0.00014132,2]
[331114746,1720087844091,-500.0,0.00014132,2]
[331114747,1720087844100,-500.0,0.00014132,2]
[331114748,1720087844109,-534.86202019,0.00014132,2]
[331114749,1720087844118,-534.91260146,0.00014132,2]
[331114750,1720087844127,-500.0,0.00014132,2]
[331114751,1720087844137,-500.0,0.00014132,2]
[331114752,1720087844147,-500.0,0.00014132,2]
[331114753,1720087844156,-638.25970023,0.00014132,2]
[331114754,1720087844166,-500.0,0.00014132,2]
[331114755,1720087844175,-500.0,0.00014132,2]
[331114756,1720087844184,-503.85199557,0.00014132,2]
[331114757,1720087844193,-209.93455945,0.00014132,2]
[331114758,1720087844203,-500.0,0.00014132,2]
[331114759,1720087844212,-500.0,0.00014132,2]
[331114760,1720087844221,-505.84708477,0.00014132,2]
[331114761,1720087844231,-946.68,0.00014135,2]
[331114762,1720087844240,-946.68,0.00014135,2]
[331114763,1720087844249,-531.00460404,0.00014135,2]
[331114764,1720087844259,-500.0,0.00014135,2]
[331114765,1720087844268,-4962.42,0.00014141,2]
[331114766,1720087844277,-1018.67,0.00014141,2]
[331114767,1720087844286,-726.74,0.00014141,2]
[331114768,1720087844300,-856.19,0.00014141,2]
[331114769,1720087844309,-6774.48,0.00014141,2]
[331114770,1720087844318,-3126.36,0.00014141,2]
[331114771,1720087844327,-500.0,0.00014144,2]
[331114772,1720087844338,-946.68,0.00014145,2]
[331114773,1720087844347,-7269.10038163,0.00014149,2]
[331114774,1720087844356,-500.0,0.00014155,2]
[331114775,1720087844365,-500.0,0.00014155,2]
[331114776,1720087844378,-10670.52,0.00014155,2]
[331114777,1720087844387,-593.11,0.00014155,2]
[331114778,1720087844399,-500.0,0.000142,2]
[331114780,1720087844408,-7269.10038163,0.00014218,2]
[331114781,1720087844417,-18108.3978557,0.00014285,2]
[331114783,1720087844427,-7269.10038163,0.00014286,2]
[331114785,1720087844435,-500.0,0.00014294,2]
[331114787,1720087844444,-2642.35,0.00014295,2]
[331114788,1720087844453,-833.63,0.00014295,2]
[331114789,1720087844462,-500.0,0.00014295,2]
[331114790,1720087844471,-500.0,0.00014295,2]
[331114791,1720087844482,-1847.74,0.00014295,2]
[331114792,1720087844491,-500.0,0.00014295,2]
[331114793,1720087844501,-568.69,0.00014295,2]
[331114794,1720087844510,-2618.87,0.00014295,2]
[331114795,1720087844520,-2456.35,0.00014295,2]
[331114796,1720087844529,-1350.87,0.00014295,2]
[331114797,1720087844538,-500.0,0.00014295,2]
[331114798,1720087844547,-313.36,0.00014295,2]
[331114799,1720087844556,-1112.35,0.00014295,2]
[331114800,1720087844566,-618.18,0.00014295,2]
[331114801,1720087844575,-500.0,0.00014295,2]
[331114802,1720087844584,-4383.96,0.00014295,2]
[331114803,1720087844594,-13273.12,0.00014295,2]
[331114804,1720087844603,-1857.67,0.00014295,2]
[331114805,1720087844612,-500.0,0.000143,2]
[331114806,1720087844621,-500.0,0.00014337,2]
[331114807,1720087844630,-564.34536678,0.00014337,2]
[331114808,1720087844639,-1144.03,0.00014337,2]
[331114809,1720087844649,-500.0,0.00014337,2]
[331114810,1720087844658,-500.0,0.00014337,2]
[331114811,1720087844667,-228.68,0.00014337,2]
[331114812,1720087844677,-500.0,0.00014337,2]
[331114813,1720087844687,-1549.3,0.00014337,2]
[331114814,1720087844697,-500.0,0.00014337,2]
[331114815,1720087844707,-500.0,0.00014337,2]
[331114816,1720087844716,-978.62,0.00014337,2]
[331114817,1720087844725,-1333.4,0.00014337,2]
[331114818,1720087844736,-500.0,0.00014337,2]